Cogmind - Beta 10.2 @@@ ROGUE MODE // 2021.01.13 @ 17:32:35 Player: blelm Result: System corrupted Performance ------------- Evolutions (0) 0 Regions Visited (3) 600 Robots Destroyed (25) 125 Value Destroyed (595) 595 Prototype IDs (1) 20 Alien Tech Used (0) 0 Bonus (-129) -129 TOTAL SCORE: 1211 Bonus ------- Friendly Fire -129 Cogmind --------- Core Integrity 0/250 Matter 105/300 Energy 10/250 System Corruption 100% Temperature Cool (10) Movement Treading (180) Ox1 Location -10/Exiles Parts ------- > --- POWER (1) -------- Ion Engine > --- PROPULSION (2) --- Light Treads Light Treads > --- UTILITY (2) ------ Large Storage Unit Large Storage Unit > --- WEAPON (2) ------- Latent Energy Streamer > --- INVENTORY (16) --- Aluminum Leg Aluminum Leg Aluminum Leg Wheel Compact Wheel Large Storage Unit High-capacity Matter Pod (25) Medium Laser Beam Cannon Light Cannon Grenade Launcher Mining Laser Peak State ------------ > --- POWER ------------ Ion Engine > --- PROPULSION ------- Light Treads Light Treads > --- UTILITY ---------- Large Storage Unit Large Storage Unit > --- WEAPON ----------- Medium Laser Latent Energy Streamer > --- INVENTORY -------- Ion Engine Aluminum Leg Aluminum Leg Aluminum Leg Wheel Compact Wheel Large Storage Unit High-capacity Matter Pod Medium Laser Beam Cannon Beam Cannon Light Cannon Mining Laser [Rating: 17] Favorites ----------- Power Ion Engine Engine Ion Engine Propulsion Light Treads Treads Light Treads Leg Aluminum Leg Utility Large Storage Unit Storage Large Storage Unit Weapon Medium Laser Energy Gun Medium Laser Energy Cannon Latent Energy Streamer Ballistic Gun Light Assault Rifle Launcher Grenade Launcher Special Weapon Mining Laser Build | -11 -10 -10 -10 ------- Run | Scr Mat Min Exi Slots Evolved . | . . . . Power . | . . . . Propulsion . | . . . . Utility . | . . . . Weapon . | . . . . Parts Attached 32 | 6 22 1 3 Power 3 | . 2 . 1 Engine 3 | . 2 . 1 Core . | . . . . Reactor . | . . . . Propulsion 13 | 4 9 . . Treads 6 | 2 4 . . Leg 7 | 2 5 . . Wheel . | . . . . Hover . | . . . . Flight . | . . . . Utility 3 | 1 2 . . Device . | . . . . Storage 3 | 1 2 . . Processor . | . . . . Hackware . | . . . . Protection . | . . . . Artifact . | . . . . Weapon 13 | 1 9 1 2 Energy Gun 8 | 1 7 . . Energy Cannon 2 | . . . 2 Ballistic Gun . | . . . . Ballistic Cannon . | . . . . Launcher 1 | . . 1 . Special Weapon 2 | . 2 . . Impact Weapon . | . . . . Slashing Weapon . | . . . . Piercing Weapon . | . . . . Special Melee Weapon . | . . . . Unidentified Prototypes 1 | . . . 1 Parts Lost 5 | . 4 . 1 Power 1 | . . . 1 Propulsion 1 | . 1 . . Utility . | . . . . Weapon 3 | . 3 . . Highest Loss Streak 3 | . 3 . 1 Average Slot Usage (%) 95 | . 99 100 94 Engine 13 | . 14 14 13 Treads 23 | . 5 28 28 Leg 4 | . 22 . . Storage 28 | . 28 28 28 Energy Gun 11 | . 21 16 8 Energy Cannon 9 | . . . 12 Ballistic Gun 1 | . 5 . . Launcher 1 | . . 11 1 Naked Turns . | . . . . Heaviest Build 49 | 14 41 42 49 Greatest Support 40 | 40 40 40 40 Greatest Overweight (x) 2 | . 2 1 1 Average Overweight (x) . | . . 1 1 Largest Inventory Capacity 16 | 8 16 16 16 Average Capacity 14 | 7 12 16 16 Most Carried 14 | 7 11 13 14 Average Carried 11 | 6 8 12 13 Final Capacity 16 | 8 16 16 16 Final Carried 13 | 7 11 13 12 Class Distribution -------------------- 96% | Mutant 3% | Scavenger-Mutant Dominant Class ---------------- Mutant | -10/Materials Mutant | -10/Mines Mutant | -10/Exiles Resources | -11 -10 -10 -10 ----------- Run | Scr Mat Min Exi Matter Collected 556 | 240 246 14 56 Remotely . | . . . . Salvage Created 1193 | 156 562 59 416 Parts 59 | 10 32 4 13 Haulers Intercepted 1 | . 1 . . Recyclers Shooed 1 | . 1 . . Parts Field Recycled . | . . . . Retrieved Matter . | . . . . Parts Self-Destructed . | . . . . Prevented . | . . . . Kills | -11 -10 -10 -10 ------- Run | Scr Mat Min Exi Combat Hostiles Destroyed 16 | . 11 4 1 Guns 11 | . 11 . . AOE 5 | . . 4 1 Classes Destroyed 8 | 2 4 1 1 Worker 2 | . 1 1 . Tunneler 3 | 2 1 . . Hauler 1 | . 1 . . Recycler 1 | 1 . . . Watcher 1 | . 1 . . Swarmer 3 | . . 3 . Grunt 13 | . 11 1 1 Hunter 1 | . . . 1 Best Kill Streak 6 | 2 6 5 1 Combat Bots Only 5 | . 5 4 1 Max Kills in Single Turn 4 | 1 2 4 1 Gunslinging . | . . . . Exploded 3 | . . 3 1 Melee . | . . . . Uniques/NPCs Destroyed . | . . . . Combat | -11 -10 -10 -10 -------- Run | Scr Mat Min Exi Damage Taken 850 | 34 795 12 9 Core 195 | . 192 . 3 Absorbed by Shields . | . . . . Core Remaining (%) 100 | 100 . . . Volleys Fired 163 | 10 64 3 86 Largest 2 | 2 2 1 2 Hottest 110 | 70 100 30 110 Shots Fired 231 | 20 121 3 87 Gun 141 | 20 116 . 5 Cannon 82 | . . . 82 Launcher 3 | . . 3 . Special 5 | . 5 . . Kinetic 47 | 10 37 . . Thermal 85 | 8 71 . 6 Explosive 3 | . . 3 . Electromagnetic 96 | 2 13 . 81 Robot Hit Streak 13 | 11 13 1 5 Robot Miss Streak 2 | 1 2 1 2 Penetration Max . | . . . . Secondary Targets 2 | . 2 . . Max Gunslinging Chain 1 | . 1 . . Shots Hit Robots 104 | 17 80 1 6 Core Hits 67 | 7 33 6 21 Critical Hits . | . . . . Critical Kills . | . . . . Critical Parts Destroyed . | . . . . Melee Attacks . | . . . . Impact . | . . . . Slashing . | . . . . Piercing . | . . . . Sneak Attacks . | . . . . Combat Hostiles . | . . . . Follow-up Attacks . | . . . . Damage Inflicted 2380 | 258 936 445 741 Guns 1077 | 174 890 . 13 Cannons 43 | . . . 43 Explosions 1221 | 45 46 445 685 Melee . | . . . . Ramming 39 | 39 . . . Kinetic 281 | 73 208 . . Thermal 1090 | 121 595 343 31 Explosive 102 | . . 102 . Electromagnetic 868 | 25 133 . 710 Impact . | . . . . Slashing . | . . . . Piercing . | . . . . Highest Corruption 100 | . . . 100 Average Corruption 34 | . . . 34 Corruption Purged . | . . . . Effects 151 | . . . 151 Message Errors 23 | . . . 23 Matter Fused 23 | . . . 23 Heat Flow Errors 10 | . . . 10 Energy Discharges 15 | . . . 15 Data Loss (minor) 10 | . . . 10 Data Loss (major) 4 | . . . 4 Misfires 6 | . . . 6 Misdirections 4 | . . . 4 Targeting Errors 49 | . . . 49 Weapon Failures 7 | . . . 7 Overload Shots . | . . . . Overflow Damage 21 | . . 11 10 Projectiles . | . . . . Explosions 21 | . . 11 10 Melee . | . . . . Knockbacks 2 | 2 . . . Impact 2 | 2 . . . Kinetic . | . . . . Secondary . | . . . . Self-Inflicted Damage 95 | 34 46 4 11 Shots 4 | 1 1 1 1 Rammed 15 | 15 . . . Targets Rammed 15 | 15 . . . Kicked . | . . . . Crushed . | . . . . Highest Temperature 401 | 80 401 . 268 Average Temperature 72 | 26 102 . 48 Received Heat Transfer 405 | . 405 . . Effects 3 | . 2 . 1 Energy Bleed 1 | . 1 . . Interference 1 | . . . 1 Damage (minor) 1 | . 1 . . Siege Activations . | . . . . Robots Corrupted . | . . . . Combat Hostiles . | . . . . Parts Fried 1 | . 1 . . Impact Corruptions . | . . . . Robots Melted . | . . . . Combat Hostiles . | . . . . Parts Melted 6 | . 5 1 . Heat Transferred 2438 | 272 1642 450 74 Parts Sabotaged . | . . . . Parts Stolen . | . . . . Parts Stripped . | . . . . Power Chain Reactions 2 | 1 1 . . Missiles Intercepted . | . . . . Latent Energy Used 5174 | . . . 5174 LE Corruption 100 | . . . 100 Alert | -11 -10 -10 -10 ------- Run | Scr Mat Min Exi Peak Influence 231 | 15 231 221 . Initial 51 | . 9 51 . Average 100 | 5 127 84 . Maximum Alert Level 1 | . 1 1 . Low Security (%) 77 | 100 71 82 . Level 1 22 | . 28 17 . Level 2 . | . . . . Level 3 . | . . . . Level 4 . | . . . . Level 5 . | . . . . High Security . | . . . . Max Security . | . . . . Squads Dispatched 4 | . 4 . . Investigation 1 | . 1 . . Extermination . | . . . . Reinforcement 3 | . 3 . . Assault . | . . . . Garrison . | . . . . Intercept . | . . . . Construction Impeded . | . . . . Haulers Reinforced . | . . . . Stealth | -11 -10 -10 -10 --------- Run | Scr Mat Min Exi Distress Signals 1 | . 1 . . Communications Jammed . | . . . . Distress Signals . | . . . . Times Spotted 20 | . 17 3 . Peak Tracking Total 5 | . 4 5 . Tactical Retreats 1 | . . 1 . Traps | -11 -10 -10 -10 ------- Run | Scr Mat Min Exi Traps Triggered 1 | . 1 . . Indirectly . | . . . . Trap Hack Attempts . | . . . . Triggered . | . . . . Disarmed . | . . . . Reprogrammed . | . . . . Reused . | . . . . Traps Extracted . | . . . . Installed . | . . . . Triggered . | . . . . Machines | -11 -10 -10 -10 ---------- Run | Scr Mat Min Exi Machines Disabled 7 | . 1 4 2 Max in Single Turn 4 | . 1 4 1 Machines Sabotaged . | . . . . Garrisons Compromised . | . . . . Overloaded Fab Kills . | . . . . Fab Network Shutdowns . | . . . . Hacking | -11 -10 -10 -10 --------- Run | Scr Mat Min Exi Machines Accessed 6 | . 2 . 4 Terminals 2 | . 2 . . Fabricators . | . . . . Repair Stations . | . . . . Recycling Units . | . . . . Scanalyzers . | . . . . Garrison Access . | . . . . Total Hacks 52 | . 3 . 49 Successful 49 | . . . 49 Failed 3 | . 3 . . Catastrophic 1 | . 1 . . Database Lockouts . | . . . . Manual 3 | . 2 . 1 Terminals 3 | . 3 . . Fabricators . | . . . . Repair Stations . | . . . . Recycling Units . | . . . . Scanalyzers . | . . . . Garrison Access . | . . . . Terminal Hacks 49 | . . . 49 Record 49 | . . . 49 Fabricator Hacks . | . . . . Repair Station Hacks . | . . . . Recycling Unit Hacks . | . . . . Scanalyzer . | . . . . Garrison Access Hacks . | . . . . Unauthorized Hacks . | . . . . Terminals . | . . . . Fabricators . | . . . . Repair Stations . | . . . . Recycling Units . | . . . . Scanalyzers . | . . . . Garrison Access . | . . . . Data Cores Recovered . | . . . . Used . | . . . . Hacking Detections 2 | . 2 . . Full Trace Events . | . . . . Feedback Events . | . . . . Feedback Blocked . | . . . . Robot Schematics Acquired . | . . . . Robots Built . | . . . . Matter . | . . . . Time . | . . . . Total Robot Build Rating . | . . . . Part Schematics Acquired . | . . . . Parts Built . | . . . . Matter . | . . . . Time . | . . . . Total Part Build Rating . | . . . . Parts Repaired . | . . . . Time . | . . . . Parts Recycled . | . . . . Recycled Matter . | . . . . Retrieved Matter . | . . . . Retrieved Components . | . . . . Parts Scanalyzed . | . . . . Part Schematics Acquired . | . . . . Parts Damaged . | . . . . Bothacking | -11 -10 -10 -10 ------------ Run | Scr Mat Min Exi Used RIF Installer . | . . . . Robots Hacked . | . . . . Non-combat . | . . . . Combat . | . . . . Robot Hacks Applied . | . . . . Relay Couplers Released . | . . . . Robots Rewired 1 | . . . 1 Allies Hacked . | . . . . Hacks Repelled . | . . . . Allies | -11 -10 -10 -10 -------- Run | Scr Mat Min Exi Total Allies 1 | . . . 1 Largest Group 1 | . . . 1 Highest-Rated Group 21 | . . . 21 Highest-Rated Ally 21 | . . . 21 Total Orders . | . . . . Ally Attacks . | . . . . Total Damage . | . . . . Kills . | . . . . Allies Corrupted . | . . . . Allies Melted . | . . . . Intel | -11 -10 -10 -10 ------- Run | Scr Mat Min Exi Robot Analysis Total . | . . . . Derelict Logs Recovered 1 | . . 1 . Drone Launches . | . . . . Drone Recoveries . | . . . . Exploration | -11 -10 -10 -10 ------------- Run | Scr Mat Min Exi Turns Passed 3644 | 150 698 254 2542 Spaces Moved 1034 | 57 290 135 552 Core . | . . . . Treads 803 | 50 66 135 552 Legs 231 | 7 224 . . Wheels . | . . . . Hover . | . . . . Flight . | . . . . Fastest Speed 120 | 120 120 180 180 Average Speed 170 | 155 152 180 180 Slowest Speed 180 | 160 180 180 180 Overloaded Moves . | . . . . Propulsion Burnouts . | . . . . Robots Hopped . | . . . . Cave-ins Triggered . | . . . . Exploration Rate (%) 44 | 5 55 30 89 Regions Visited 3 Branch Regions 2 Pre-discovered Areas 1 | . . . 1 Known Exits Taken . | . . . . Unknown Exits Taken 3 | 1 1 1 . Scrap Searched 1 | . . 1 . Spaces Dug 8 | . 2 . 6 Terrain Destroyed 81 | 3 9 34 35 Melee . | . . . . Projectile 5 | . 5 . . AOE 76 | 3 4 34 35 Terrain Rammed . | . . . . Walls Destroyed . | . . . . Machines Disabled . | . . . . Actions | -11 -10 -10 -10 --------- Run | Scr Mat Min Exi Total 2668 | 88 422 143 2015 Wait 1374 | . 26 3 1345 Move 1031 | 56 289 134 552 Hop . | . . . . Pick Up 14 | 1 10 2 1 Fast Attach 7 | 1 5 . 1 Attach 6 | . 4 . 2 Detach . | . . . . Swap 19 | 5 13 1 . Drop 14 | . 11 . 3 Fire 163 | 10 64 3 86 Melee . | . . . . Ram . | . . . . Kick . | . . . . Crush 15 | 15 . . . Escape Stasis . | . . . . Rewire 25 | . . . 25 Trap . | . . . . Miscellaneous . | . . . . Route ------- -11/Scrapyard -10/Materials (discovered 2 exits: *Mat / [*Min]) -10/Mines (discovered 3 exits: *Mat x2 / *Exi) -10/Exiles (discovered 1 exit: [*Min]) History --------- Turn | Location | Event 4 | -11/Scrapyard | Discovered new exit (range 3) 151 | -11/Scrapyard | Entered Materials 259 | -10/Materials | Discovered new exit (range 16) 328 | -10/Materials | Build established: Mutant 362 | -10/Materials | Lost 3 parts (1n2w) 450 | -10/Materials | Discovered new exit (range 6) 699 | -10/Materials | Core integrity fell below 50% 849 | -10/Materials | Entered Mines 978 | -10/Mines | Discovered new exit (range 6) 980 | -10/Mines | Identified exit to Materials 1096 | -10/Mines | Deemed a non-threat by the Exiles lab entrance 1096 | -10/Mines | Discovered new exit (range 5) 1103 | -10/Mines | Entered Exiles 1103 | -10/Exiles | Found Exiles lab destroyed 1130 | -10/Exiles | Discovered new exit (range 15) 1299 | -10/Exiles | Opened EX-Vault 1309 | -10/Exiles | Found Prototype Energy Cannon 1309 | -10/Exiles | Identified Latent Energy Streamer 1595 | -10/Exiles | Learned location of Zion (-7) 2191 | -10/Exiles | System corruption reached 10% 2534 | -10/Exiles | System corruption reached 30% 3646 | -10/Exiles | System corrupted Last Messages --------------- 03503_ System corrupted: Energy discharge (-25). 03519_ RSLNYKBT/E5IKJ2:UUBIN0KN1 #QIP%36BU&7T 03521_ System corrupted: Latent Energy Streamer targeting data glitched. 03534_ HPOYUHSD/KSJ0F%/YFPVWEWZOVMHE 03540_ System corrupted: Latent Energy Streamer targeting data glitched. 03549_ D1SJ7TNSG%9AWM59G U#TLQK G7LAGNHMD 03558_ System corrupted: Latent Energy Streamer targeting data glitched. 03570_ System corrupted: FCS attempts to trigger Latent Energy Streamer. 03570_ System corrupted: Latent Energy Streamer targeting data glitched. 03570_ System corrupted: Latent Energy Streamer misfires. 03585_ C &Z%GHCO|#:OJHBMIHJHGJEBTU=65>M 03587_ System corrupted: Latent Energy Streamer targeting data glitched. 03600_ System corrupted: Component data lost. 03600_ System corrupted: Latent Energy Streamer targeting data glitched. 03616_ MG>RFCA:IPSL KUEMXVB%U 03621_ System corrupted: Latent Energy Streamer targeting data glitched. 03632_ UZP3L 03646_ Cogmind system terminally corrupted. Map ----- +----------------------------------------------------+ | # #??????" "#????????#" """ | | ##?????? "?????????# """""" | | #???????" "?????????## ####### | | ##??????????# #????????##"" #?????? | | "### ######???### ###?######"" #?????? | | "#?## ""#####X# # ###"" """ ###???? | | ##??# "" " ###?# | | ##???#"# % " ### | | ?????#### | | ????????### | | ??????????# # ! | | ??????????#### | | ?????????????## | | ??????????????## | | ??????????????## """""" | | ??????????????#; ###### | | ?????????????## "##????# #""" | | ?????????????#; "##?????######" | | ?????????????# "##???????????#""" | | ?????????????# ""#???????????##"" | | ?????????????# ########??####"" | | ?????????????#" ##%!%####"" | | ?????????????#"" ==!* "" | | ?????????????##"" = ! | | ??????????????#""" =% | | ??????????????## ]@ | | ???????????????#" " " | | ???????????????#"""" ""## ##"" " | | ???????????????#"" ""#### ######""" | | ???????????????#" """"##??# #????###" | | ???????????????#""" """#??## ####???## | | ???????????????## ""##??# "!#????? | | ????????????????#"" """##???#" !#????? | | ????????????????##" ##????#" "#????? | | ?????????????????##"" / ##?????#!!"" "#????? | | ??????????????????### #??????########????? | | ????????????????????##### ##??????????????????? | | ????????????????????????## #???????????????????? | | ?????????????????????????# #???????????????????? | | ?????????????????????????# #???????????????????? | | ?????????????????????????# #???????????????????? | | ?????????????????????????# #???????????????????? | | ??????""""?????"""""?????# #???????????????????? | | ?????""""""????""""""????# #???????????????????? | | #"""""""" "????" """"???# #???????????????????? | | #""#""" """????"" """???# #???????????????????? | | #""#"" ""????"" ""???# #???????????????????? | | #""###"""########"""###### ########????????????? | | " """" """" """ "" #????????????? | | "" """ ! #"" "????????? | +----------------------------------------------------+ Best States ------------- Heat Dissipation 25 Energy Generation 10 Energy Capacity 250 Matter Stores 300 Matter Capacity 300 Sight Range 16 Terrain Scan Density 10 Evasion (%) 40 Recoil Reduction 2 Item Schematics ----------------- None Robot Schematics ------------------ None Fabricated ------------ Nothing Alien Tech Used ----------------- None Achievements -------------- None Challenges ------------ None Game ------ Seed SupersonicCryofiberStick Manual? 0 Play Time 00:23:07 Cumulative 290.7 hours Start 2021.01.13 @ 14:00:30 End 2021.01.13 @ 17:32:35 Sessions 1 Manual Loads 0 Difficulty Rogue Special Mode None Game No. 147 Rogue 147 Adventurer 0 Explorer 0 Win Type - Total 6 Types 1/3/0/0/0/0/2/0/0 Lore% 76 Gallery% 82 Achievement% 66 Wizard Run 0 Options --------- ASCII 1 Keyboard 1 Movement Vi Keybinds 0 Fullscreen 1 Font 16/Terminus Map View 75x55 Tactical HUD 1 Map Filters NONE Filters NONE Steam 1 RUN: 5f8edba8-66ea-4f0a-a6f3-943f831bb66a